Cogmind - Beta 16.1 @@@ ROGUE MODE // 2026.02.15 @ 15:10:48 Player: Gamma Result: Destroyed by Piercing Trap Performance ------------- Evolutions (0) 0 Regions Visited (3) 600 Robots Destroyed (36) 180 Value Destroyed (772) 772 Prototype IDs (2) 40 Alien Tech Used (0) 0 Bonus (0) 0 TOTAL SCORE: 1592 Bonus ------- None Cogmind --------- Core Integrity 0/250 Matter 296/300 Energy 261/265 System Corruption 5% Temperature Cool (2) Movement Treading (160) Location -10/Subcaves Parts ------- > --- POWER (1) -------- Improved Ion Engine > --- PROPULSION (2) --- Light Treads Spiked Treads > --- UTILITY (2) ------ Large Storage Unit Weapon Shielding > --- WEAPON (2) ------- Subdweller Laser Light Cannon > --- INVENTORY (15) --- Light Ion Engine Subdweller Power Source Light Treads Aluminum Leg Subdweller Monowheel Improved Heat Sink Machine Analyzer Propulsion Shielding Grenade Launcher Grenade Launcher Rocket Launcher Peak State ------------ > --- POWER ------------ Light Ion Engine > --- PROPULSION ------- Light Treads Spiked Treads > --- UTILITY ---------- Large Storage Unit Light Armor Plating > --- WEAPON ----------- EM Shotgun EM Shotgun > --- INVENTORY -------- Light Ion Engine Improved Ion Engine Subdweller Power Source Light Treads Light Treads Light Treads Aluminum Leg Improved Heat Sink Medium Battery Machine Analyzer Propulsion Shielding Light Cannon Grenade Launcher Grenade Launcher [Rating: 12] Favorites ----------- Power Light Ion Engine Engine Light Ion Engine Propulsion Light Treads Treads Light Treads Utility Large Storage Unit Storage Large Storage Unit Protection Light Armor Plating Weapon EM Shotgun Energy Gun EM Shotgun Ballistic Cannon Light Cannon Launcher Grenade Launcher Build | -11 -10 -10 -10 ------- Run | Yrd Mat Min Sub Slots Evolved . | . . . . Power . | . . . . Propulsion . | . . . . Utility . | . . . . Weapon . | . . . . Parts Attached 29 | 6 11 8 4 Power 4 | 1 2 1 . Engine 4 | 1 2 1 . Core . | . . . . Reactor . | . . . . Propulsion 6 | 2 2 1 1 Treads 6 | 2 2 1 1 Leg . | . . . . Wheel . | . . . . Hover . | . . . . Flight . | . . . . Utility 6 | 1 2 1 2 Device . | . . . . Storage 3 | 1 2 . . Processor . | . . . . Hackware . | . . . . Protection 3 | . . 1 2 Artifact . | . . . . Weapon 13 | 2 5 5 1 Energy Gun 10 | 2 5 2 1 Energy Cannon . | . . . . Ballistic Gun . | . . . . Ballistic Cannon 1 | . . 1 . Launcher 2 | . . 2 . Special Weapon . | . . . . Impact Weapon . | . . . . Slashing Weapon . | . . . . Piercing Weapon . | . . . . Special Melee Weapon . | . . . . Unidentified Prototypes . | . . . . Corrupted Parts 1 | . . . 1 System Corruption 3 | . . . 3 Parts Lost 14 | . 5 6 3 Power 2 | . 1 1 . Propulsion 4 | . 2 1 1 Utility 2 | . . 1 1 Weapon 6 | . 2 3 1 Highest Loss Streak 4 | . 3 4 2 To Critical Strikes . | . . . . Average Backups 11 | 3 8 13 11 Power 1 | . 1 2 2 Propulsion 2 | 1 2 3 3 Utility 2 | . . 4 3 Weapon 3 | . 4 3 3 Tool/Special . | . . . . Unused Backups 10 | . 2 . 8 Power 1 | . . . 1 Propulsion 4 | . 1 . 3 Utility 3 | . . . 3 Weapon 2 | . 1 . 1 Tool/Special . | . . . . Average Slot Usage (%) 94 | . 93 94 97 Engine 13 | . 13 13 14 Treads 27 | . 26 28 28 Storage 19 | . 24 15 14 Protection 5 | . . 7 11 Energy Gun 22 | . 27 22 13 Ballistic Cannon 4 | . . 4 14 Peak Build Rating 12 | 6 11 12 12 Average Rating 10 | 4 9 11 10 On Entrance 6 | . 6 11 10 Avg Prop Armor Cover (%) . | . . . . Naked Turns . | . . . . Heaviest Build 37 | 12 31 33 37 Greatest Support 40 | 40 40 40 40 Greatest Overweight (x) 10 | . 10 . . Average Overweight (x) . | . . . . Largest Inventory Capacity 15 | 8 15 15 15 Average Capacity 14 | 7 12 15 15 Most Carried 15 | 5 11 15 13 Average Carried 11 | 2 8 13 11 Final Capacity 15 | 8 15 15 15 Final Carried 12 | 4 10 12 11 Class Distribution -------------------- 100% | Mutant Dominant Class ---------------- Mutant | -10/Materials Mutant | -10/Mines Mutant | -10/Subcaves Resources | -11 -10 -10 -10 ----------- Run | Yrd Mat Min Sub Matter Collected 811 | 228 225 239 119 Remotely . | . . . . Salvage Created 1132 | . 819 190 123 Parts 76 | . 48 16 12 Haulers Intercepted 1 | . 1 . . Recyclers Shooed . | . . . . Parts Field Recycled . | . . . . Retrieved Matter . | . . . . Parts Self-Destructed 5 | . . . 5 Prevented . | . . . . Parts Restored . | . . . . Kills | -11 -10 -10 -10 ------- Run | Yrd Mat Min Sub Combat Hostiles Destroyed 36 | . 15 16 5 Guns 19 | . 11 6 2 Cannons 4 | . . 1 3 AOE 11 | . 3 8 . Classes Destroyed 11 | . 9 2 . Worker 3 | . 2 1 . Builder 1 | . 1 . . Hauler 1 | . 1 . . Recycler 1 | . 1 . . Operator 1 | . 1 . . Watcher 2 | . 2 . . Swarmer 13 | . 6 6 1 Grunt 8 | . 7 . 1 Sentry 2 | . . 1 1 Subdweller 4 | . 2 . 2 Assembled 9 | . . 9 . Best Kill Streak 6 | . 3 6 2 Combat Bots Only 5 | . 3 5 2 Max Kills in Single Turn 2 | . 2 2 1 Gunslinging 1 | . 1 . . Exploded 2 | . 1 2 . Melee . | . . . . Uniques/NPCs Destroyed . | . . . . Combat | -11 -10 -10 -10 -------- Run | Yrd Mat Min Sub Hostile Shots Fired 122 | . 47 49 26 Missed 30 | . 5 16 9 Hits 92 | . 42 33 17 Melee 8 | . . 8 . Projectile 84 | . 42 25 17 Critical Strikes 1 | . 1 . . Damage Taken 1637 | . 615 657 365 Core 250 | . 85 103 62 Absorbed by Shields . | . . . . Redirected to Shielding 7 | . . . 7 Core Remaining (%) 100 | 100 . . . Volleys Fired 88 | . 37 32 19 Largest 2 | . 2 2 2 Hottest 90 | . 90 90 90 Shots Fired 169 | . 73 59 37 Gun 139 | . 73 49 17 Cannon 23 | . . 3 20 Launcher 7 | . . 7 . Special . | . . . . Kinetic 23 | . . 3 20 Thermal 5 | . . . 5 Explosive 7 | . . 7 . Electromagnetic 134 | . 73 49 12 Robot Hit Streak 17 | . 14 10 17 Robot Miss Streak 5 | . 3 5 2 Penetration Max . | . . . . Secondary Targets 4 | . 3 1 . Max Gunslinging Chain 1 | . 1 1 . Shots Hit Robots 131 | . 60 39 32 Core Hits 83 | . 40 35 8 Critical Kills . | . . . . Critical Parts Destroyed . | . . . . Critical Strikes . | . . . . Melee Attacks . | . . . . Impact . | . . . . Slashing . | . . . . Piercing . | . . . . Sneak Attacks . | . . . . Combat Hostiles . | . . . . Follow-up Attacks . | . . . . Damage Inflicted 2384 | . 1027 1000 357 Guns 1410 | . 846 401 163 Cannons 231 | . . 37 194 Explosions 743 | . 181 562 . Melee . | . . . . Ramming . | . . . . Kinetic 231 | . . 37 194 Thermal 360 | . 181 82 97 Explosive 480 | . . 480 . Electromagnetic 1313 | . 846 401 66 Impact . | . . . . Slashing . | . . . . Piercing . | . . . . Highest Corruption 5 | . 2 2 5 Average Corruption 2 | . 2 2 2 Corruption Purged . | . . . . Corruption Blocked . | . . . . Effects 45 | . 12 23 10 Message Errors 10 | . 2 7 1 Matter Fused 13 | . 6 5 2 Heat Flow Errors 4 | . . 2 2 Energy Discharges 3 | . 1 1 1 Data Loss (minor) 5 | . 1 3 1 Data Loss (major) 3 | . 1 1 1 Misfires 4 | . . 3 1 Alerts 3 | . 1 1 1 Overload Shots . | . . . . Overflow Damage 27 | . . 27 . Projectiles . | . . . . Explosions 27 | . . 27 . Melee . | . . . . Knockbacks 1 | . . . 1 Impact . | . . . . Kinetic 1 | . . . 1 Secondary . | . . . . Self-Inflicted Damage 165 | . 52 113 . Shots 6 | . 2 4 . Rammed . | . . . . Targets Rammed . | . . . . Kicked . | . . . . Crushed . | . . . . Highest Temperature 462 | . 432 462 88 Average Temperature 108 | . 111 110 47 Received Heat Transfer 545 | . 434 27 84 Effects 8 | . 3 5 . Shutdowns 4 | . 2 2 . Interference 3 | . 1 2 . Damage (minor) 1 | . . 1 . Siege Activations . | . . . . Martial Activations . | . . . . Shielding Activations . | . . . . Robots Disrupted . | . . . . Combat Hostiles . | . . . . Robots Corrupted 2 | . 1 1 . Combat Hostiles 2 | . 1 1 . Parts Fried 3 | . 3 . . Impact Corruptions . | . . . . Robots Melted . | . . . . Combat Hostiles . | . . . . Parts Melted 2 | . . 2 . Heat Transferred 275 | . 50 100 125 Parts Sabotaged . | . . . . Parts Stolen . | . . . . Parts Stripped . | . . . . Power Chain Reactions 5 | . 4 1 . Alert | -11 -10 -10 -10 ------- Run | Yrd Mat Min Sub Maximum Alert Level . | . . . . Low Security (%) 100 | 100 100 100 . Level 1 . | . . . . Level 2 . | . . . . Level 3 . | . . . . Level 4 . | . . . . Level 5 . | . . . . High Security . | . . . . Max Security . | . . . . Peak Influence 125 | . 125 111 . Initial . | . . . . Average 29 | . 35 23 . Influence Increases 736 | . 415 261 60 Destroy 0b10 Robot/C 460 | . 260 140 60 Destroy 0b10 Robot/NC 50 | . 40 10 . Destroy Leader 86 | . 66 20 . Successful Hack 12 | . 12 . . Disable Machine 45 | . . 45 . Destroy Structure 68 | . 22 46 . Lose Combat Pursuer 15 | . 15 . . Influence Decreases 736 | . 415 213 108 Entered New Map 26 | . . . 26 Time Decay 623 | . 365 176 82 Lost Part 87 | . 50 37 . Squads Dispatched 3 | . 3 . . Investigation 1 | . 1 . . Extermination . | . . . . Reinforcement 2 | . 2 . . Assault . | . . . . Garrison . | . . . . Intercept . | . . . . Searches Triggered . | . . . . Construction Impeded . | . . . . Haulers Reinforced . | . . . . Active Scanning Responses . | . . . . Cargo Convoy Interrupts . | . . . . Stealth | -11 -10 -10 -10 --------- Run | Yrd Mat Min Sub Distress Signals 1 | . 1 . . Communications Jammed . | . . . . Distress Signals . | . . . . Times Spotted 52 | . 30 18 4 Peak Tracking Total 4 | . 4 4 2 Tactical Retreats 3 | . 2 1 . Traps | -11 -10 -10 -10 ------- Run | Yrd Mat Min Sub Traps Triggered 5 | . 4 . 1 Indirectly . | . . . . Trap Hack Attempts . | . . . . Triggered . | . . . . Disarmed . | . . . . Reprogrammed . | . . . . Reused . | . . . . Traps Extracted . | . . . . Installed . | . . . . Triggered . | . . . . Machines | -11 -10 -10 -10 ---------- Run | Yrd Mat Min Sub Machines Disabled 3 | . . 3 . Max in Single Turn 2 | . . 2 . Machines Repaired . | . . . . Machines Dismantled . | . . . . Machines Sabotaged . | . . . . Overloaded Fab Kills . | . . . . Hacking | -11 -10 -10 -10 --------- Run | Yrd Mat Min Sub Machines Accessed 6 | . 6 . . Terminals 5 | . 5 . . Fabricators . | . . . . Repair Stations . | . . . . Recycling Units 1 | . 1 . . Scanalyzers . | . . . . Garrison Access . | . . . . Total Hacks 10 | . 10 . . Successful 3 | . 3 . . Failed 7 | . 7 . . Catastrophic 2 | . 2 . . Database Lockouts . | . . . . Manual . | . . . . Terminals 9 | . 9 . . Fabricators . | . . . . Repair Stations . | . . . . Recycling Units 1 | . 1 . . Scanalyzers . | . . . . Garrison Access . | . . . . Terminal Hacks 2 | . 2 . . Prototype ID Bank 1 | . 1 . . Registered Components 1 | . 1 . . Fabricator Hacks . | . . . . Repair Station Hacks . | . . . . Recycling Unit Hacks 1 | . 1 . . Report Inventory 1 | . 1 . . Scanalyzer . | . . . . Garrison Access Hacks . | . . . . Unauthorized Hacks . | . . . . Terminals . | . . . . Fabricators . | . . . . Repair Stations . | . . . . Recycling Units . | . . . . Scanalyzers . | . . . . Garrison Access . | . . . . Data Cores Recovered . | . . . . Used . | . . . . Hacking Detections 4 | . 4 . . Full Trace Events . | . . . . Feedback Events . | . . . . Feedback Blocked . | . . . . Robot Schematics Acquired . | . . . . Robots Built . | . . . . Authchips . | . . . . Time . | . . . . Total Robot Build Rating . | . . . . Part Schematics Acquired . | . . . . Parts Built . | . . . . Authchips . | . . . . Time . | . . . . Total Part Build Rating . | . . . . Part Studies Acquired . | . . . . Parts Repaired . | . . . . Time . | . . . . Parts Recycled . | . . . . Recycled Matter . | . . . . Retrieved Matter . | . . . . Retrieved Components . | . . . . Parts Scanalyzed . | . . . . Part Schematics Acquired . | . . . . Parts Damaged . | . . . . Bothacking | -11 -10 -10 -10 ------------ Run | Yrd Mat Min Sub Used RIF Installer . | . . . . Robots Hacked . | . . . . Non-combat . | . . . . Combat . | . . . . Robot Hacks Applied . | . . . . Relay Couplers Released . | . . . . Fabnet Peak Effective % . | . . . . Robots Rewired . | . . . . Allies Hacked . | . . . . Hacks Repelled . | . . . . Allies | -11 -10 -10 -10 -------- Run | Yrd Mat Min Sub Total Allies . | . . . . Largest Group . | . . . . Highest-Rated Group . | . . . . Highest-Rated Ally . | . . . . Total Orders . | . . . . Ally Attacks . | . . . . Total Damage . | . . . . Kills . | . . . . Allies Corrupted . | . . . . Allies Melted . | . . . . Intel | -11 -10 -10 -10 ------- Run | Yrd Mat Min Sub Active Infowar (turns) . | . . . . Robot Analysis Total . | . . . . Derelict Logs Recovered 1 | . . . 1 Drone Launches . | . . . . Drone Recoveries . | . . . . Exploration | -11 -10 -10 -10 ------------- Run | Yrd Mat Min Sub Turns Passed 3313 | 73 1319 1297 624 Spaces Moved 1791 | 42 675 726 348 Core 18 | 8 10 . . Treads 1773 | 34 665 726 348 Legs . | . . . . Wheels . | . . . . Hover . | . . . . Flight . | . . . . Fastest Speed 50 | 50 160 160 160 Average Speed 161 | 139 166 160 160 Slowest Speed 550 | 160 550 160 160 Overloaded Moves . | . . . . Propulsion Burnouts . | . . . . Robots Hopped . | . . . . Potential Cave-ins . | . . . . Cave-ins Triggered . | . . . . Exploration Rate (%) 53 | 3 88 92 29 Regions Visited 3 Branch Regions 2 Pre-discovered Areas 1 | . . . 1 Known Exits Taken . | . . . . Unknown Exits Taken 3 | 1 1 1 . Scrap Searched 2 | . . 2 . Spaces Dug . | . . . . Terrain Destroyed 83 | . 21 62 . Melee . | . . . . Projectile . | . . . . AOE 83 | . 21 62 . Terrain Rammed . | . . . . Walls Destroyed . | . . . . Machines Disabled . | . . . . Actions | -11 -10 -10 -10 --------- Run | Yrd Mat Min Sub Total 2037 | 57 798 802 380 Wait 76 | . 48 22 6 Move 1788 | 41 674 725 348 Hop . | . . . . Pick Up 37 | 10 16 8 3 Fast Attach 7 | . 7 . . Attach 23 | 6 8 5 4 Detach . | . . . . Swap 12 | . 3 9 . Drop 6 | . 5 1 . Fire 88 | . 37 32 19 Melee . | . . . . Ram . | . . . . Kick . | . . . . Crush . | . . . . Escape Stasis . | . . . . Rewire . | . . . . Trap . | . . . . Miscellaneous . | . . . . Route ------- -11/Scrapyard -10/Materials (discovered 4 exits: [*Mat x2] / [*Min x2]) -10/Mines (discovered 3 exits: [*Mat x2] / [*Sub]) -10/Subcaves History --------- Turn | Location | Event 6 | -11/Scrapyard | Discovered new exit (range 16) 74 | -11/Scrapyard | Entered Materials 161 | -10/Materials | Discovered new exit (range 6) 303 | -10/Materials | Build established: Mutant 457 | -10/Materials | Discovered new exit (range 9) 899 | -10/Materials | Discovered new exit (range 9) 980 | -10/Materials | Discovered new exit (range 10) 1174 | -10/Materials | Derelicts attacked the area 1319 | -10/Materials | Lost 3 parts (2n1w) 1393 | -10/Materials | Entered Mines 1483 | -10/Mines | Discovered new exit (range 10) 1532 | -10/Mines | Joined a pair of Derelicts in attacking an 0b10 outpost 1537 | -10/Mines | Core integrity fell below 50% 1950 | -10/Mines | Discovered new exit (range 7) 1957 | -10/Mines | Received a Rocket Launcher from a helpful Derelict 1985 | -10/Mines | Assembled infested the area 1990 | -10/Mines | Assisted by a Guerilla fighting off Assembled 2283 | -10/Mines | Lost 4 parts (1p1n1u1w) 2506 | -10/Mines | Discovered new exit (range 3) 2690 | -10/Mines | Entered Subcaves 2691 | -10/Subcaves | Approached by a straggling Scientist 2692 | -10/Subcaves | Learned location of Zion (-6) 2918 | -10/Subcaves | A swath of the cavern ceiling suddenly collapsed 3067 | -10/Subcaves | Core integrity fell below 20% 3182 | -10/Subcaves | A swath of the cavern ceiling suddenly collapsed 3219 | -10/Subcaves | Curiously followed by a Cobbler waking with a query about "LVR3C" 3314 | -10/Subcaves | Destroyed by Piercing Trap Last Messages --------------- 03182_ 11 Matter crushed. A swath of the cavern ceiling suddenly collapses. 03219_ FO-7SX(O) wakes at your presence. 03219_ FO-7SX(O): "LVR3C?" 03220_ FO-7SX(O) collects matter. 03243_ P,I4D9XMT TXE1014VITC3|P0KHT5 03246_ FO-7SX(O) collects matter. 03260_ FO-7SX(O) puts together Mak. Hacking Suite. 03281_ FO-7SX(O) collects matter. 03288_ System corrupted: Matter fused (-9). 03294_ Acquired 9 matter. 03298_ FO-7SX(O) collects matter. 03309_ System corrupted: FCS attempts to trigger Lgt. Cannon. 03309_ System corrupted: Lgt. Cannon misfires. 03314_ Triggered Piercing Trap. 03314_ Spikes shoot up from the floor. 03314_ Critical hit (Impale). Map ----- +----------------------------------------------------+ | ??????????????????????????????????????????????? | | ??????????????????????????????????????????????? | | ??????????????????????????????????????????????? | | ??????????????????????????????????????????????? | | ??????????????????????????????????????????????? | | ??????????????????????????????????????????????? | | ??????????????????????????????????????????????? | | ??????????????????????????????????????????????? | | ??????????????????????????????????????????????? | | ??????????????????????????????????????????????? | | ??????????????????????????????????????????????? | | ??????????????????????????# ?????????????????? | | ?????????????????????????? ?????????????????? | | ?????????????????????????# #????????????????? | | ?????????????????????????? ????????????????? | | ?????????????????????????? #????????????????? | | ?????????????????????????? #????????????????? | | ?????????????????????????? ????????????????? | | ?????????????????????????## ##???????????????? | | ?????????????????????????? #???????????????? | | ????????????????????#????? #???????????????? | | ????????????????????# ???## #???????????????? | | ????????????????????# ##? #???????????????? | | ????????????????????# # ## #???????????????? | | ????????????????????# ###??????????????? | | ????????????????????# @ ##?????????????? | | ???????????????????# ### #?????????????? | | ????????????????????????##; #?????????????? | | ????????????????????????# ; #?????????????? | | ????????????????????????# #?????????????? | | ????????????????????????# #?????????????? | | ????????????????????????# #?????????????? | | ???????????????????????## ####?????????????? | | ???????????????????????# ###????????????????? | | ???????????????????????# %#??????????????????? | | ???????????????????????## ##?????????????????? | | ???????????????????????## #?????????????????? | | ???????????????????????# ##?????????????????? | | ???????????????????????## #?????????????????? | | ???????????????????????# ##?????????????????? | | ???????????????????????# #?????????????????? | | ???????????????????????## ##?????????????????? | | ????????????????????????# ####???????????????? | | ???????????????????????## # ##??????????????? | | ???????????????????????# # #??????????????? | | ????????????????????#### #??????????????? | | ???????????????????## % #??????????????? | | ???????????????????#% #??????????????? | | ???????????????##### #??????????????? | | ??????????????## #??????????????? | +----------------------------------------------------+ Best States ------------- Heat Dissipation 25 Energy Generation 12 Energy Capacity 275 Matter Stores 300 Matter Capacity 300 Sight Range 16 Terrain Scan Density 10 Armor Coverage 150 Weapon Shielding 33 Evasion (%) 50 Recoil Reduction 2 Item Schematics ----------------- None Robot Schematics ------------------ None Fabricated ------------ Nothing Repaired ---------- Nothing Studied --------- None Alien Tech Used ----------------- None Achievements -------------- None Challenges ------------ None Game ------ Seed BlastSchematicStripper Manual? 0 Play Time 00:24:47 Cumulative 64.9 hours Start 2026.02.13 @ 13:02:56 End 2026.02.15 @ 15:10:48 Sessions 4 Manual Loads 0 Difficulty Rogue Special Mode None Game No. 49 Rogue 49 Adventurer 0 Explorer 0 Win Type - Total 1 Types 1/0/0/0/0/0/0/0/0/0 Lore% 41 Gallery% 39 Achievement% 28 Wizard Run 0 Options --------- Layout 1 ASCII 1 Keyboard 0 Movement Mouse Keybinds 0 Fullscreen 1 Font 32/Tamsyn Map View 50x35 Zoom Use 0% Tactical HUD 1 Map Filters NONE Filters NONE Steam 1 RUN: c8b39643-ed6c-45da-9c08-36b21dec2a5f